fUST/lending_fUST_20250206
["ID","MTS","AMOUNT","RATE_DAILY","PERIOD"]
[351936987,1738852241841,-500.0,0.00013835,2]
[351936989,1738852241853,-304.28702336,0.00013835,2]
[351936991,1738852241864,-503.32902953,0.00013835,2]
[351936993,1738852241875,-743.61,0.00013835,2]
[351936996,1738852241887,-500.0,0.00013835,2]
[351936998,1738852241899,-500.0,0.00013835,2]
[351937000,1738852241911,-500.0,0.00013835,2]
[351937002,1738852241923,-500.0,0.00013835,2]
[351937004,1738852241934,-507.76093265,0.00013835,2]
[351937006,1738852241946,-500.0,0.00013835,2]
[351937008,1738852241959,-500.0,0.00013835,2]
[351937011,1738852241970,-500.0,0.00013835,2]
[351937013,1738852241981,-208.65336372,0.00013835,2]
[351937015,1738852241991,-500.0,0.00013835,2]
[351937017,1738852242002,-163.49685421,0.00013835,2]
[351937019,1738852242013,-516.26,0.00013835,2]
[351937021,1738852242023,-500.0,0.00013835,2]
[351937023,1738852242035,-500.0,0.00013835,2]
[351937025,1738852242046,-500.0,0.00013835,2]
[351937028,1738852242057,-500.0,0.00013835,2]
[351937030,1738852242067,-500.0,0.00013835,2]
[351937032,1738852242078,-1530.81,0.00013835,2]
[351937034,1738852242089,-500.0,0.00013835,2]
[351937036,1738852242100,-1133.46,0.00013835,2]
[351937038,1738852242111,-1637.38,0.00013835,2]
[351937040,1738852242122,-500.0,0.00013835,2]
[351937043,1738852242133,-500.0,0.00013835,2]
[351937045,1738852242144,-500.0,0.00013835,2]
[351937047,1738852242155,-500.0,0.00013835,2]
[351937049,1738852242165,-565.77,0.00013835,2]
[351937051,1738852242176,-500.0,0.00013835,2]
[351937053,1738852242187,-500.0,0.00013835,2]
[351937055,1738852242198,-613.35121028,0.00013835,2]
[351937057,1738852242210,-500.0,0.00013835,2]
[351937059,1738852242221,-500.0,0.00013835,2]
[351937062,1738852242232,-587.49,0.00013835,2]
[351937064,1738852242243,-500.0,0.00013835,2]
[351937066,1738852242254,-500.0,0.00013835,2]
[351937068,1738852242265,-540.58338602,0.00013835,2]
[351937070,1738852242275,-500.0,0.00013835,2]
[351937072,1738852242287,-595.84,0.00013835,2]
[351937074,1738852242298,-500.0,0.00013835,2]
[351937077,1738852242310,-500.0,0.00013835,2]
[351937079,1738852242324,-540.86,0.00013835,2]
[351937081,1738852242334,-500.0,0.00013835,2]
[351937083,1738852242343,-500.0,0.00013835,2]
[351937085,1738852242352,-500.0,0.00013835,2]
[351937087,1738852242362,-502.09160468,0.00013835,2]
[351937089,1738852242371,-500.0,0.00013835,2]
[351937091,1738852242381,-500.0,0.00013835,2]
[351937093,1738852242390,-942.92,0.00013835,2]
[351937095,1738852242399,-1349.01,0.00013835,2]
[351937097,1738852242408,-527.1,0.00013835,2]
[351937099,1738852242417,-500.0,0.00013835,2]
[351937101,1738852242427,-500.0,0.00013835,2]
[351937103,1738852242436,-1142.33,0.00013835,2]
[351937128,1738852242656,-500.0,0.00013835,2]
[351937130,1738852242674,-1471.59,0.00013835,2]
[351937133,1738852242687,-500.0,0.00013835,2]
[351937135,1738852242696,-682.28,0.00013835,2]
[351937137,1738852242706,-517.54206974,0.00013835,2]
[351937139,1738852242715,-505.96697996,0.00013835,2]
[351937140,1738852242725,-500.0,0.00013835,2]
[351937142,1738852242734,-500.0,0.00013835,2]
[351937144,1738852242743,-500.0,0.00013835,2]
[351937146,1738852242753,-500.0,0.00013835,2]
[351937148,1738852242763,-792.37,0.00013835,2]
[351937150,1738852242772,-500.0,0.00013835,2]
[351937152,1738852242781,-1190.35,0.00013835,2]
[351937154,1738852242791,-903.2,0.00013835,2]
[351937159,1738852242800,-610.51,0.00013835,2]
[351937162,1738852242809,-973.24,0.00013835,2]
[351937163,1738852242818,-638.79,0.00013835,2]
[351937165,1738852242827,-500.0,0.00013835,2]
[351937167,1738852242836,-1233.74,0.00013835,2]
[351937170,1738852242846,-500.0,0.00013835,2]
[351937173,1738852242855,-827.21,0.00013835,2]
[351937175,1738852242865,-500.0,0.00013835,2]
[351937177,1738852242874,-2996.5,0.00013835,2]
[351937179,1738852242883,-500.0,0.00013835,2]
[351937181,1738852242892,-3533.55,0.00013835,2]
[351937183,1738852242902,-6673.27,0.00013835,2]
[351937185,1738852242912,-500.0,0.00013835,2]
[351937187,1738852242921,-500.0,0.00013835,2]
[351937189,1738852242930,-500.0,0.00013835,2]
[351937191,1738852242940,-1020.81,0.00013835,2]
[351937193,1738852242949,-500.0,0.00013835,2]
[351937195,1738852242960,-500.0,0.00013835,2]
[351937197,1738852242969,-557.21,0.00013835,2]
[351937200,1738852242980,-500.0,0.00013835,2]
[351937202,1738852242990,-500.0,0.00013835,2]
[351937204,1738852243000,-13399.96,0.00013835,2]
[351937206,1738852243009,-500.0,0.00013835,2]
[351937207,1738852243019,-500.0,0.00013835,2]
[351937209,1738852243028,-500.0,0.00013835,2]
[351937211,1738852243037,-500.0,0.00013835,2]
[351937213,1738852243047,-1306.86,0.00013835,2]
[351937215,1738852243056,-500.0,0.00013835,2]
[351937217,1738852243066,-750.53,0.00013835,2]
[351937219,1738852243075,-265.86682504,0.00013835,2]
[351937221,1738852243084,-500.0,0.00013835,2]
[351937223,1738852243094,-4363.28,0.00013835,2]
[351937225,1738852243104,-1150.01,0.00013835,2]
[351937227,1738852243114,-1267.48,0.00013835,2]
[351937229,1738852243123,-500.0,0.00013835,2]
[351937231,1738852243133,-5796.15,0.00013835,2]
[351937233,1738852243142,-1001.84,0.00013835,2]
[351937235,1738852243152,-763.04,0.00013835,2]
[351937237,1738852243162,-500.0,0.00013835,2]
[351937239,1738852243172,-2320.38,0.00013835,2]
[351937241,1738852243184,-500.0,0.00013835,2]
[351937243,1738852243193,-394.00457614,0.00013835,2]
[351937245,1738852243203,-500.0,0.00013835,2]
[351937247,1738852243217,-500.0,0.00013835,2]
[351937249,1738852243227,-500.0,0.00013835,2]
[351937251,1738852243237,-2135.49,0.00013835,2]
[351937253,1738852243246,-500.0,0.00013835,2]
[351937255,1738852243255,-42643.98,0.00013835,2]
[351937257,1738852243265,-1016.63,0.00013835,2]
[351937259,1738852243274,-780.62,0.00013835,2]
[351937261,1738852243283,-500.0,0.00013835,2]
[351937263,1738852243293,-729.89,0.00013835,2]
[351937265,1738852243305,-2468.47,0.00013835,2]
[351937267,1738852243316,-500.0,0.00013835,2]
[351937269,1738852243325,-500.0,0.00013835,2]
[351937271,1738852243334,-1755.26,0.00013835,2]
[351937273,1738852243344,-500.0,0.00013835,2]
[351937275,1738852243353,-500.0,0.00013835,2]
[351937277,1738852243363,-1507.93,0.00013835,2]
[351937279,1738852243372,-2380.35,0.00013835,2]
[351937281,1738852243382,-500.0,0.00013835,2]
[351937283,1738852243391,-17470.79,0.00013835,2]
[351937285,1738852243401,-1357.54,0.00013835,2]
[351937287,1738852243411,-502.09,0.00013835,2]
[351937289,1738852243420,-500.0,0.00013835,2]
[351937291,1738852243429,-644.09,0.00013835,2]
[351937293,1738852243439,-500.0,0.00013835,2]
[351937295,1738852243448,-500.0,0.00013835,2]
[351937297,1738852243459,-500.0,0.00013835,2]
[351937299,1738852243468,-703.94,0.00013835,2]
[351937301,1738852243477,-3605.2,0.00013835,2]
[351937303,1738852243485,-9267.35,0.00013835,2]
[351937305,1738852243494,-500.0,0.00013835,2]
[351937307,1738852243503,-500.0,0.00013835,2]
[351937309,1738852243513,-500.0,0.00013835,2]
[351937311,1738852243522,-1602.84,0.00013835,2]
[351937312,1738852243531,-500.0,0.00013835,2]
[351937315,1738852243541,-500.0,0.00013835,2]
[351937317,1738852243550,-449.72302827,0.00013835,2]
[351937318,1738852243559,-966.89,0.00013835,2]
[351937320,1738852243568,-500.0,0.00013835,2]
[351937323,1738852243578,-500.0,0.00013835,2]
[351937324,1738852243587,-3288.75,0.00013835,2]
[351937327,1738852243596,-500.0,0.00013835,2]
[351937328,1738852243606,-376.87501903,0.00013835,2]
[351937330,1738852243615,-1867.6,0.00013835,2]
[351937332,1738852243624,-875.81,0.00013835,2]
[351937334,1738852243633,-500.0,0.00013835,2]
[351937336,1738852243642,-955.32,0.00013835,2]
[351937338,1738852243652,-1449.65,0.00013835,2]
[351937340,1738852243660,-500.0,0.00013835,2]
[351937342,1738852243669,-1206.68,0.00013835,2]
[351937344,1738852243679,-4287.37,0.00013835,2]
[351937346,1738852243687,-500.0,0.00013835,2]
[351937348,1738852243696,-3208.17,0.00013835,2]
[351937349,1738852243707,-2160.78,0.00013835,2]
[351937350,1738852243716,-500.0,0.00013835,2]
[351937351,1738852243725,-500.0,0.00013835,2]
[351937352,1738852243734,-500.0,0.00013835,2]
[351937353,1738852243744,-921.46,0.00013835,2]
[351937355,1738852243754,-500.0,0.00013835,2]
[351937357,1738852243763,-500.0,0.00013835,2]
[351937359,1738852243772,-1126.62,0.00013835,2]
[351937361,1738852243782,-500.0,0.00013835,2]
[351937363,1738852243791,-500.0,0.00013835,2]
[351937365,1738852243800,-998.79,0.00013835,2]
[351937367,1738852243809,-500.0,0.00013835,2]
[351937369,1738852243818,-1470.7,0.00013835,2]
[351937371,1738852243827,-153.0,0.00013863,2]
[351937373,1738852243836,-1773.48587835,0.00013872,2]
[351937375,1738852243845,-430.7684161,0.0001389,2]
[351937377,1738852243854,-153.0,0.0001389,2]
[351937379,1738852243863,-153.0,0.0001389,2]
[351937381,1738852243872,-153.0,0.0001389,2]
[351937382,1738852243881,-153.0,0.0001389,2]
[351937384,1738852243892,-153.0,0.0001389,2]
[351937387,1738852243903,-12213.27709481,0.0001394,2]
[351937388,1738852243912,-503.46361273,0.00013972,2]
[351937390,1738852243923,-500.0,0.00013972,2]
[351937392,1738852243943,-500.0,0.00013972,2]
[351937394,1738852243954,-500.0,0.00013972,2]
[351937397,1738852243966,-500.0,0.00013972,2]
[351937399,1738852243977,-500.0,0.00013972,2]
[351937401,1738852243986,-500.0,0.00013972,2]
[351937403,1738852243996,-500.0,0.00013972,2]
[351937404,1738852244006,-754.73,0.00013972,2]
[351937406,1738852244016,-500.0,0.00013972,2]
[351937408,1738852244026,-586.70871007,0.00013972,2]
[351937410,1738852244037,-500.0,0.00013972,2]
[351937412,1738852244047,-500.0,0.00013972,2]
[351937415,1738852244057,-563.3,0.00013972,2]
[351937417,1738852244067,-832.19,0.00013972,2]
[351937419,1738852244077,-500.0,0.00013972,2]
[351937421,1738852244088,-500.0,0.00013972,2]
[351937424,1738852244098,-884.68,0.00013972,2]
[351937426,1738852244108,-575.99855087,0.00013972,2]
[351937427,1738852244118,-743.61,0.00013972,2]
[351937429,1738852244127,-211.6941032,0.00013972,2]
[351937431,1738852244136,-500.0,0.00013972,2]
[351937433,1738852244146,-500.0,0.00013972,2]
[351937435,1738852244155,-1000.0,0.00013972,2]
[351937438,1738852244166,-500.0,0.00013972,2]
[351937440,1738852244176,-500.0,0.00013972,2]
[351937442,1738852244186,-516.26,0.00013972,2]
[351937444,1738852244196,-500.0,0.00013972,2]
[351937446,1738852244208,-500.0,0.00013972,2]
[351937448,1738852244218,-500.0,0.00013972,2]
[351937450,1738852244227,-306.36551695,0.00013972,2]
[351937451,1738852244237,-500.0,0.00013972,2]
[351937453,1738852244247,-1530.81,0.00013972,2]
[351937455,1738852244256,-500.0,0.00013972,2]
[351937458,1738852244266,-1133.46,0.00013972,2]
[351937460,1738852244276,-1637.38,0.00013972,2]
[351937462,1738852244287,-500.0,0.00013972,2]
[351937464,1738852244296,-500.0,0.00013972,2]
[351937466,1738852244311,-500.0,0.00013972,2]
[351937468,1738852244321,-500.0,0.00013972,2]
[351937470,1738852244331,-500.0,0.00013972,2]
[351937472,1738852244341,-500.0,0.00013972,2]
[351937474,1738852244351,-500.0,0.00013972,2]
[351937476,1738852244360,-595.84,0.00013972,2]
[351937478,1738852244369,-500.0,0.00013972,2]
[351937480,1738852244379,-500.0,0.00013972,2]
[351937482,1738852244389,-500.0,0.00013972,2]
[351937483,1738852244400,-500.0,0.00013972,2]
[351937485,1738852244410,-500.0,0.00013972,2]
[351937487,1738852244420,-942.92,0.00013972,2]
[351937490,1738852244429,-1349.01,0.00013972,2]
[351937491,1738852244439,-500.0,0.00013972,2]
[351937494,1738852244449,-500.0,0.00013972,2]
[351937496,1738852244461,-1142.33,0.00013972,2]
[351937497,1738852244472,-500.0,0.00013972,2]
[351937499,1738852244481,-1471.59,0.00013972,2]
[351937502,1738852244492,-682.28,0.00013972,2]
[351937503,1738852244501,-500.0,0.00013972,2]
[351937506,1738852244511,-500.0,0.00013972,2]
[351937507,1738852244521,-792.37,0.00013972,2]
[351937509,1738852244530,-473.11195959,0.00013972,2]
[351937511,1738852244540,-1190.35,0.00013972,2]
[351937514,1738852244549,-903.2,0.00013972,2]
[351937515,1738852244559,-610.51,0.00013972,2]
[351937517,1738852244568,-973.24,0.00013972,2]
[351937519,1738852244578,-638.79,0.00013972,2]
[351937521,1738852244588,-500.0,0.00013972,2]
[351937523,1738852244598,-1233.74,0.00013972,2]
[351937525,1738852244607,-500.0,0.00013972,2]
[351937527,1738852244617,-827.21,0.00013972,2]
[351937529,1738852244626,-500.0,0.00013972,2]
[351937531,1738852244637,-2996.5,0.00013972,2]
[351937534,1738852244647,-3533.55,0.00013972,2]
[351937535,1738852244656,-6673.27,0.00013972,2]
[351937537,1738852244665,-500.0,0.00013972,2]
[351937539,1738852244675,-441.5,0.00013972,2]
[351937542,1738852244685,-500.0,0.00013972,2]
[351937544,1738852244695,-1020.81,0.00013972,2]
[351937545,1738852244706,-500.0,0.00013972,2]
[351937547,1738852244715,-557.21,0.00013972,2]
[351937550,1738852244725,-520.68859544,0.00013972,2]
[351937552,1738852244735,-500.0,0.00013972,2]
[351937554,1738852244745,-13399.96,0.00013972,2]
[351937557,1738852244755,-500.0,0.00013972,2]
[351937559,1738852244765,-500.0,0.00013972,2]
[351937561,1738852244775,-500.0,0.00013972,2]
[351937563,1738852244786,-500.0,0.00013972,2]
[351937565,1738852244796,-1306.86,0.00013972,2]
[351937567,1738852244807,-750.53,0.00013972,2]
[351937569,1738852244817,-500.0,0.00013972,2]
[351937571,1738852244826,-4363.28,0.00013972,2]
[351937573,1738852244835,-1150.01,0.00013972,2]
[351937575,1738852244844,-1267.48,0.00013972,2]
[351937577,1738852244854,-500.0,0.00013972,2]
[351937579,1738852244863,-5796.15,0.00013972,2]
[351937581,1738852244873,-1001.84,0.00013972,2]
[351937583,1738852244883,-763.04,0.00013972,2]
[351937585,1738852244893,-500.0,0.00013972,2]
[351937587,1738852244903,-2320.38,0.00013972,2]
[351937589,1738852244914,-500.0,0.00013972,2]
[351937591,1738852244924,-500.0,0.00013972,2]
[351937593,1738852244940,-500.0,0.00013972,2]
[351937595,1738852244956,-2135.49,0.00013972,2]
[351937597,1738852244970,-274.40048507,0.00013972,2]
[351937598,1738852244981,-42643.98,0.00013972,2]
[351937600,1738852244991,-1016.63,0.00013972,2]
[351937602,1738852245001,-780.62,0.00013972,2]
[351937604,1738852245012,-500.0,0.00013972,2]
[351937607,1738852245022,-729.89,0.00013972,2]
[351937609,1738852245032,-2468.47,0.00013972,2]
[351937611,1738852245041,-500.0,0.00013972,2]
[351937613,1738852245051,-500.0,0.00013972,2]
[351937615,1738852245062,-1755.26,0.00013972,2]
[351937617,1738852245071,-500.0,0.00013972,2]
[351937619,1738852245082,-1507.93,0.00013972,2]
[351937621,1738852245092,-2380.35,0.00013972,2]
[351937623,1738852245103,-196.03949853,0.00013972,2]
[351937625,1738852245113,-17470.79,0.00013972,2]
[351937627,1738852245123,-1357.54,0.00013972,2]
[351937629,1738852245133,-502.09,0.00013972,2]
[351937631,1738852245142,-500.0,0.00013972,2]
[351937633,1738852245152,-644.09,0.00013972,2]
[351937635,1738852245162,-500.0,0.00013972,2]
[351937637,1738852245172,-500.0,0.00013972,2]
[351937639,1738852245182,-500.0,0.00013972,2]
[351937641,1738852245192,-703.94,0.00013972,2]
[351937643,1738852245201,-3605.2,0.00013972,2]
[351937645,1738852245215,-9267.35,0.00013972,2]
[351937647,1738852245226,-500.0,0.00013972,2]
[351937649,1738852245235,-500.0,0.00013972,2]
[351937651,1738852245245,-1602.84,0.00013972,2]
[351937653,1738852245255,-500.0,0.00013972,2]
[351937655,1738852245265,-966.89,0.00013972,2]
[351937657,1738852245276,-500.0,0.00013972,2]
[351937659,1738852245287,-500.0,0.00013972,2]
[351937661,1738852245297,-3288.75,0.00013972,2]
[351937663,1738852245308,-500.0,0.00013972,2]
[351937666,1738852245321,-875.81,0.00013972,2]
[351937668,1738852245332,-1867.6,0.00013972,2]
[351937670,1738852245342,-500.0,0.00013972,2]
[351937672,1738852245351,-955.32,0.00013972,2]
[351937674,1738852245361,-1449.65,0.00013972,2]
[351937676,1738852245371,-500.0,0.00013972,2]
[351937678,1738852245381,-1206.68,0.00013972,2]
[351937680,1738852245391,-4287.37,0.00013972,2]
[351937682,1738852245402,-530.96614738,0.00013972,2]
[351937684,1738852245412,-3208.17,0.00013972,2]
[351937686,1738852245422,-2160.78,0.00013972,2]
[351937688,1738852245433,-500.0,0.00013972,2]
[351937690,1738852245444,-500.0,0.00013972,2]
[351937692,1738852245454,-500.0,0.00013972,2]
[351937694,1738852245466,-921.46,0.00013972,2]
[351937696,1738852245476,-500.0,0.00013972,2]
[351937698,1738852245486,-1126.62,0.00013972,2]
[351937700,1738852245496,-500.0,0.00013972,2]
[351937702,1738852245507,-998.79,0.00013972,2]
[351937704,1738852245517,-500.0,0.00013972,2]
[351937706,1738852245528,-1470.7,0.00013972,2]
[351937708,1738852245538,-400.0,0.00013973,2]
[351937710,1738852245549,-153.0,0.00013973,2]
[351937713,1738852245559,-1993.39330619,0.00013975,2]
[351937715,1738852245569,-9050.53909296,0.00013989,2]
[351937717,1738852245579,-9050.53909296,0.00013989,2]
[351937719,1738852245598,-9050.53909296,0.00013995,2]
[351937720,1738852245608,-151.0,0.00014,2]
[351937723,1738852245618,-151.0,0.00014,2]
[351937725,1738852245628,-4686.0,0.00014,2]
[351937727,1738852245637,-151.0,0.00014,2]
[351937729,1738852245647,-154.103974,0.00014,2]
[351937730,1738852245656,-154.103974,0.00014,2]
[351937732,1738852245666,-713.241668,0.00014,2]
[351937734,1738852245676,-151.0,0.00014,2]
[351937737,1738852245686,-713.241668,0.00014,2]
[351937739,1738852245696,-151.0,0.00014,2]
[351937740,1738852245705,-273.349625,0.00014,2]
[351937743,1738852245717,-153.484543,0.00014,2]
[351937745,1738852245726,-273.349625,0.00014,2]
[351937747,1738852245736,-151.0,0.00014,2]
[351937749,1738852245745,-151.0,0.00014,2]
[351937751,1738852245755,-151.0,0.00014,2]
[351937753,1738852245765,-151.0,0.00014,2]
[351937754,1738852245774,-151.0,0.00014,2]
[351937756,1738852245783,-1500.0,0.00014,2]
[351937758,1738852245793,-2000.0,0.00014,2]
[351937760,1738852245802,-2957.1157595,0.00014,2]
[351937763,1738852245812,-1000.0,0.00014013,2]
[351937765,1738852245821,-1000.0,0.00014017,2]
[351937767,1738852245831,-1000.0,0.00014048,2]
[351937769,1738852245840,-151.0,0.00014048,2]
[351937771,1738852245849,-199.691131,0.00014048,2]
[351937773,1738852245858,-1000.0,0.00014057,2]
[351937775,1738852245867,-1000.0,0.0001406,2]
[351937777,1738852245877,-1000.0,0.00014068,2]
[351937779,1738852245887,-1000.0,0.00014083,2]
[351937781,1738852245896,-1000.0,0.00014094,2]
[351937803,1738852246038,-151.0,0.000141,2]
[351937805,1738852246049,-151.0,0.000141,2]
[351937807,1738852246059,-2072.28527919,0.000141,2]
[351937809,1738852246069,-2691.7317327,0.00014103,2]
[351937811,1738852246079,-303.686,0.00014103,2]
[351937813,1738852246089,-500.0,0.00014109,2]
[351937816,1738852246099,-500.0,0.00014109,2]
[351937819,1738852246108,-500.0,0.00014109,2]
[351937821,1738852246118,-500.0,0.00014109,2]
[351937823,1738852246128,-500.0,0.00014109,2]
[351937825,1738852246138,-500.0,0.00014109,2]
[351937827,1738852246148,-151.0,0.00014109,2]
[351937829,1738852246158,-754.73,0.00014109,2]
[351937831,1738852246167,-151.0,0.00014109,2]
[351937833,1738852246177,-500.0,0.00014109,2]
[351937835,1738852246187,-500.0,0.00014109,2]
[351937837,1738852246198,-500.0,0.00014109,2]
[351937839,1738852246208,-563.3,0.00014109,2]
[351937841,1738852246220,-832.19,0.00014109,2]
[351937843,1738852246230,-254.0,0.00014109,2]
[351937845,1738852246240,-254.0,0.00014109,2]
[351937847,1738852246250,-151.0,0.00014109,2]
[351937849,1738852246261,-884.68,0.00014109,2]
[351937851,1738852246271,-151.0,0.00014109,2]
[351937853,1738852246281,-151.0,0.00014109,2]
[351937856,1738852246291,-743.61,0.00014109,2]
[351937857,1738852246301,-500.0,0.00014109,2]
[351937859,1738852246311,-151.0,0.00014109,2]
[351937861,1738852246324,-500.0,0.00014109,2]
[351937863,1738852246334,-500.0,0.00014109,2]
[351937865,1738852246344,-500.0,0.00014109,2]
[351937867,1738852246355,-516.26,0.00014109,2]
[351937869,1738852246365,-500.0,0.00014109,2]
[351937871,1738852246375,-500.0,0.00014109,2]
[351937873,1738852246385,-151.0,0.00014109,2]
[351937875,1738852246395,-500.0,0.00014109,2]
[351937877,1738852246405,-1530.81,0.00014109,2]
[351937879,1738852246414,-1133.46,0.00014109,2]
[351937881,1738852246424,-1637.38,0.00014109,2]
[351937883,1738852246433,-151.0,0.00014109,2]
[351937885,1738852246443,-500.0,0.00014109,2]
[351937887,1738852246452,-500.0,0.00014109,2]
[351937889,1738852246463,-151.0,0.00014109,2]
[351937891,1738852246473,-151.0,0.00014109,2]
[351937893,1738852246484,-500.0,0.00014109,2]
[351937895,1738852246494,-500.0,0.00014109,2]
[351937897,1738852246505,-500.0,0.00014109,2]
[351937899,1738852246515,-500.0,0.00014109,2]
[351937901,1738852246526,-151.0,0.00014109,2]
[351937903,1738852246536,-500.0,0.00014109,2]
[351937905,1738852246546,-151.0,0.00014109,2]
[351937907,1738852246556,-595.84,0.00014109,2]
[351937909,1738852246566,-629.98221922,0.00014109,2]
[351937911,1738852246576,-500.0,0.00014109,2]
[351937913,1738852246586,-217.66061,0.00014109,2]
[351937916,1738852246596,-217.66061,0.00014109,2]
[351937918,1738852246606,-151.0,0.00014109,2]
[351937919,1738852246616,-572.16,0.00014109,2]
[351937921,1738852246626,-942.92,0.00014109,2]
[351937923,1738852246636,-1349.01,0.00014109,2]
[351937925,1738852246646,-151.0,0.00014109,2]
[351937927,1738852246655,-151.917224,0.00014109,2]
[351937929,1738852246666,-151.917224,0.00014109,2]
[351937931,1738852246675,-151.0,0.00014109,2]
[351937933,1738852246685,-500.0,0.00014109,2]
[351937935,1738852246696,-197.877974,0.00014109,2]
[351937938,1738852246707,-151.0,0.00014109,2]
[351937940,1738852246719,-500.0,0.00014109,2]
[351937942,1738852246729,-1142.33,0.00014109,2]
[351937944,1738852246739,-151.0,0.00014109,2]
[351937946,1738852246748,-500.0,0.00014109,2]
[351937948,1738852246758,-151.0,0.00014109,2]
[351937950,1738852246768,-1471.59,0.00014109,2]
[351937952,1738852246777,-151.0,0.00014109,2]
[351937954,1738852246787,-682.28,0.00014109,2]
[351937955,1738852246797,-397.093741,0.00014109,2]
[351937957,1738852246807,-397.093741,0.00014109,2]
[351937959,1738852246817,-500.0,0.00014109,2]
[351937961,1738852246826,-500.0,0.00014109,2]
[351937963,1738852246836,-151.0,0.00014109,2]
[351937965,1738852246846,-151.0,0.00014109,2]
[351937967,1738852246855,-169.76055,0.00014109,2]
[351937969,1738852246866,-792.37,0.00014109,2]
[351937971,1738852246875,-151.0,0.00014109,2]
[351937973,1738852246884,-1190.35,0.00014109,2]
[351937975,1738852246895,-903.2,0.00014109,2]
[351937977,1738852246905,-610.51,0.00014109,2]
[351937979,1738852246915,-973.24,0.00014109,2]
[351937981,1738852246925,-638.79,0.00014109,2]
[351937983,1738852246935,-500.0,0.00014109,2]
[351937985,1738852246945,-1233.74,0.00014109,2]
[351937987,1738852246954,-500.0,0.00014109,2]
[351937989,1738852246968,-1027.071389,0.00014109,2]
[351937991,1738852246979,-234.389468,0.00014109,2]
[351937993,1738852246989,-827.21,0.00014109,2]
[351937995,1738852246999,-500.0,0.00014109,2]
[351937997,1738852247011,-1027.071389,0.00014109,2]
[351937999,1738852247020,-2996.5,0.00014109,2]
[351938001,1738852247030,-234.389468,0.00014109,2]
[351938003,1738852247040,-3533.55,0.00014109,2]
[351938005,1738852247051,-6673.27,0.00014109,2]
[351938007,1738852247061,-500.0,0.00014109,2]
[351938009,1738852247072,-152.837643,0.00014109,2]
[351938011,1738852247083,-500.0,0.00014109,2]
[351938013,1738852247094,-1020.81,0.00014109,2]
[351938015,1738852247104,-151.0,0.00014109,2]
[351938017,1738852247114,-500.0,0.00014109,2]
[351938019,1738852247124,-557.21,0.00014109,2]
[351938021,1738852247135,-13399.96,0.00014109,2]
[351938023,1738852247144,-585.26779649,0.00014109,2]
[351938025,1738852247154,-505.06596654,0.00014109,2]
[351938027,1738852247164,-500.0,0.00014109,2]
[351938029,1738852247174,-1306.86,0.00014109,2]
[351938031,1738852247185,-154.103974,0.00014109,2]
[351938033,1738852247195,-750.53,0.00014109,2]
[351938035,1738852247205,-154.103974,0.00014109,2]
[351938037,1738852247218,-500.0,0.00014109,2]
[351938039,1738852247229,-4363.28,0.00014109,2]